Workbook

Sheet Автомобили
A1: Автомобили | B1: ФИО водителя | C1: ФИО хозяина авто | D1: ФИО в приложении
A2: =INDEX(Автомобили,ROW()) -> логан011 | B2: Лубочкин | C2: Ильмир | E2: =HYPERLINK("#"&A2&"!C20","вход") -> вход
A3: =INDEX(Автомобили,ROW()) -> Лист1 | E3: =HYPERLINK("#"&A3&"!C20","вход") -> вход
A4: Нексия | B4: Мухамадиев Зинур | C4: Андрей | E4: вход
A5: новЛоган929 | B5: Ибатуллин | C5: Андрей | E5: вход
A6: Киа847 | C6: Рена | E6: вход
A7: киа440 | C7: Гриша | D7: Юнусов | E7: вход

Sheet логан011
A1: Дата | B1: Приход | E1: Расход | G1: Сальдо
B2: Наличка | C2: Безнал | D2: Прочие | E2: Аренда | F2: Прочие
A3: 2019-06-21 | C3: 400 | E3: -3000 | G3: =(B3+C3+D3)+(E3+F3)+G2 -> -2600
A4: 2019-06-22 | E4: -1500 | G4: -4100
A5: 2019-06-23 | E5: -1500 | G5: -5600
A6: 2019-06-24 | C6: 3000 | E6: -1500 | G6: -4100
A7: 2019-06-25 | C7: 300 | E7: -1500 | G7: -5300
A8: 2019-06-26 | C8: 200 | E8: -1500 | F8: 500 | G8: -6100 | H8: обклейка
A9: 2019-06-27 | B9: 2000 | C9: 1500 | G9: -2600
A10: 2019-06-28 | B10: 500 | E10: -1500 | G10: -3600
A11: 2019-06-29 | E11: -1500 | G11: -5100
A12: 2019-06-30 | E12: -1500 | G12: -6600
A13: 2019-07-01 | C13: 5700 | E13: -1500 | G13: -2400
A14: 2019-07-02 | C14: 1900 | E14: -1500 | G14: -2000
A15: 2019-07-03 | C15: 200 | E15: -1500 | G15: -3300
A16: 2019-07-04 | C16: 1000 | F16: 500 | G16: -1800 | H16: привел друга на серато
A17: 2019-07-05 | C17: 300 | E17: -1500 | G17: -3000
A18: 2019-07-06 | E18: -1500 | G18: -4500
A19: 2019-07-07 | E19: -1500 | G19: -6000
A20: 2019-07-08 | C20: 3700 | E20: -1500 | G20: -3800
A21: 2019-07-09 | B21: 3500 | C21: 700 | E21: -1500 | G21: -1100
A22: 2019-07-10 | C22: 1200 | E22: -1500 | G22: -1400
A23: 2019-07-11 | B23: 600 | C23: 800 | G23: 0 | H23: заболел
A24: 2019-07-12 | G24: 0
A25: 2019-07-13 | G25: 0
A26: 2019-07-14 | G26: 0
A27: 2019-07-15 | G27: 0 | H27: прекратил работу | J27: 200 остаток
A28: 2019-07-16 | E28: -1500 | G28: -1500 | H28: Самигулов Ильгиз принял
A29: 2019-07-17 | B29: 700 | C29: 800 | E29: -1500 | G29: -1500
A30: 2019-07-18 | C30: 900 | E30: -1500 | G30: -2100
A31: 2019-07-19 | C31: 700 | E31: -1500 | G31: -2900
A32: 2019-07-20 | E32: -1500 | G32: -4400
A33: 2019-07-21 | E33: -1500 | G33: -5900
A34: 2019-07-22 | C34: 3500 | G34: -2400 | H34: забрали машину
A36: 2019-07-23 | E36: -1500 | G36: -1500 | H36: принял Шумский
A37: 2019-07-24 | B37: 1200 | C37: 300 | E37: -1500 | G37: =(B37+C37+D37)+(E37+F37)+G36 -> -1500
A38: 2019-07-25 | C38: 2500 | E38: -1500 | G38: -500
A39: 2019-07-26 | C39: 2000 | E39: -1500 | G39: 0
A40: 2019-07-27 | E40: -1500 | G40: -1500
A41: 2019-07-28 | E41: -1500 | G41: -3000
A42: 2019-07-29 | C42: 8500 | G42: 5500
A43: 2019-07-30 | C43: 3500 | E43: -1500 | F43: -3500 | G43: 4000 | H43: выдали 3500
A44: 2019-07-31 | C44: 700 | E44: -1500 | G44: 3200
A45: 2019-08-01 | C45: 2800 | E45: -1500 | G45: 4500
A46: 2019-08-02 | C46: 1500 | E46: -1500 | G46: 4500
A47: 2019-08-03 | E47: -1500 | G47: 3000
A48: 2019-08-04 | E48: -1500 | G48: 1500
A49: 2019-08-05 | C49: 5200 | G49: 6700
A50: 2019-08-06 | C50: 1900 | E50: -1500 | G50: 7100
A51: 2019-08-07 | C51: 1600 | E51: -1500 | G51: 7200 | H51: 7600 | I51: сдал машину
A52: 2019-08-08 | H52: 600 | I52: на штраф 250
A53: 2019-08-13 | B53: 1500 | E53: -1500 | G53: =(B53+C53+D53)+(E53+F53) -> 0 | H53: принял Азимов | J53: (по правам Ханкельдинова)
A54: 2019-08-14 | B54: 400 | C54: 1100 | E54: -1500 | G54: =(B54+C54+D54)+(E54+F54)+G53 -> 0
A55: 2019-08-15 | C55: 1600 | E55: -1500 | G55: 100
A56: 2019-08-16 | C56: 700 | E56: -1500 | G56: -700
A57: 2019-08-17 | E57: -1500 | G57: -2200
A58: 2019-08-18 | E58: -1500 | G58: -3700
A59: 2019-08-19 | C59: 4400 | G59: 700 | H59: поставил машину Азимов, 700р выдали
A60: 2019-08-19 | E60: -1500 | G60: =(B60+C60+D60)+(E60+F60) -> -1500 | H60: взял Сафин Владислав
A61: 2019-08-20 | B61: 300 | E61: -1500 | G61: =(B61+C61+D61)+(E61+F61)+G60 -> -2700
A62: 2019-08-21 | B62: 1134 | C62: 1200 | E62: -1500 | G62: -1866
A63: 2019-08-22 | C63: 900 | E63: -1500 | G63: -2466
A64: 2019-08-23 | B64: 2345 | C64: 800 | E64: -1500 | G64: -821
A65: 2019-08-24 | E65: -1500 | G65: -2321
A66: 2019-08-25 | G66: -2321
A67: 2019-08-26 | B67: 1921 | C67: 1900 | E67: -1500 | G67: 0 | H67: Сдал Сафин
A68: 2019-08-27 | G68: 0
A69: 2019-08-28 | G69: 0
A70: 2019-08-29 | E70: -1500 | G70: -1500 | H70: Принял Исмагилов
A71: 2019-08-30 | C71: 1130 | E71: -1500 | G71: -1870
A72: 2019-08-31 | E72: -1500 | G72: -3370
A73: 2019-09-01 | E73: -1500 | G73: -4870
A74: 2019-09-02 | C74: 4330 | E74: -750 | G74: -1290 | H74: полдня висел заказ в таксометре
A75: 2019-09-03 | C75: 620 | E75: -1500 | G75: -2170
A76: 2019-09-04 | C76: 1960 | G76: -210
A77: 2019-09-05 | C77: 1090 | E77: -1500 | G77: -620
A78: 2019-09-06 | C78: 1500 | E78: -1500 | G78: -620
A79: 2019-09-07 | E79: -1500 | G79: -2120
A80: 2019-09-08 | E80: -1500 | G80: -3620
A81: 2019-09-09 | C81: 1970 | E81: -1500 | G81: -3150
A82: 2019-09-10 | C82: 1260 | E82: -1500 | G82: -3390
A83: 2019-09-11 | C83: 2100 | G83: -1290
A84: 2019-09-12 | C84: 1100 | E84: -1500 | G84: -1690
A85: 2019-09-13 | B85: 3000 | C85: 1000 | E85: -1500 | H85: поставил машину | J85: 800 руб-500 штрафы(отдал Грише)=300 надо отправить Исмагилову
A86: 2019-09-14 | B86: 1500 | E86: -1500 | G86: 0 | H86: приняла Байгускарова Гульназ
A87: 2019-09-15 | B87: 1500 | E87: -1500 | G87: 0 | H87: поставила Байгускарова Гульназ
A88: 2019-09-16 | G88: 0
A89: 2019-09-17 | G89: 0
A90: 2019-09-18 | G90: 0
A91: 2019-09-19 | E91: -1500 | G91: -1500 | H91: принял Мухамедьяров
A92: 2019-09-20 | C92: 900 | E92: -1500 | G92: -2100
A93: 2019-09-21 | E93: -1500 | G93: -3600
A94: 2019-09-22 | E94: -1500 | G94: =(B94+C94+D94)+(E94+F94)+G93 -> -5100
A95: 2019-09-23 | C95: 6500 | E95: -1500 | F95: -800 | G95: -900 | H95: выдали 800
A96: 2019-09-24 | C96: 3000 | E96: -1500 | G96: 600
A97: 2019-09-25 | C97: 1500 | G97: 2100 | H97: поставил машину | J97: отправил 01.10. 2100 со сбера
A98: 2019-09-26 | C98: 100 | E98: -1500 | G98: =(B98+C98+D98)+(E98+F98) -> -1400 | H98: приняла Ильтубаева
A99: 2019-09-27 | C99: 100 | E99: -1500 | G99: -2800
A100: 2019-09-28 | E100: -1500 | G100: -4300
A101: 2019-09-29 | E101: -1500 | G101: -5800
A102: 2019-09-30 | B102: 1100 | C102: 800 | E102: -1500 | G102: -5400
A103: 2019-10-01 | C103: 700 | E103: -1500 | G103: -6200
A104: 2019-10-02 | C104: 400 | G104: -5800
A105: 2019-10-03 | E105: -1500 | G105: =(B105+C105+D105)+(E105+F105)+G104 -> -7300
A106: 2019-10-04 | E106: -1500 | G106: -8800
A107: 2019-10-05 | E107: -1500 | G107: -10300
A108: 2019-10-06 | E108: -1500 | G108: -11800
A109: 2019-10-07 | C109: 700 | E109: -1500 | G109: -12600
A110: 2019-10-08 | C110: 1300 | E110: -1500 | G110: -12800
A111: 2019-10-09 | C111: 600 | G111: -12200
A112: 2019-10-10 | C112: 600 | E112: -1500 | G112: -13100
A113: 2019-10-11 | E113: -1500 | G113: -14600
A114: 2019-10-12 | E114: -1500 | G114: =(B114+C114+D114)+(E114+F114)+G113 -> -16100
A115: 2019-10-13 | E115: -1500 | G115: -17600
A116: 2019-10-14 | C116: 3500 | E116: -1500 | G116: -15600
A117: 2019-10-15 | C117: 400 | E117: -1500 | G117: -16700
A118: 2019-10-16 | B118: 2200 | C118: 400 | G118: -14100
A119: 2019-10-17 | C119: 400 | E119: -1500 | G119: -15200
A120: 2019-10-18 | B120: 2000 | C120: 400 | E120: -1500 | G120: -14300
A121: 2019-10-19 | E121: -1500 | G121: -15800
A122: 2019-10-20 | E122: -1500 | G122: -17300
A123: 2019-10-21 | B123: 2000 | C123: 3500 | E123: -1500 | G123: -13300
A124: 2019-10-22 | C124: 100 | E124: -1500 | G124: =(B124+C124+D124)+(E124+F124)+G123 -> -14700
A125: 2019-10-23 | B125: 1600 | G125: -13100
A126: 2019-10-24 | C126: 300 | E126: -1500 | G126: -14300
A127: 2019-10-25 | C127: 400 | E127: -1500 | G127: -15400
A128: 2019-10-26 | E128: -1500 | G128: -16900
A129: 2019-10-27 | E129: -1500 | G129: -18400
A130: 2019-10-28 | C130: 3400 | E130: -1500 | G130: -16500
A131: 2019-10-29 | B131: 1100 | C131: 400 | E131: -1500 | G131: -16500
A132: 2019-10-30 | C132: 1600 | G132: -14900
A133: 2019-10-31 | B133: 1100 | C133: 900 | E133: -1500 | G133: =(B133+C133+D133)+(E133+F133)+G132 -> -14400
A134: 2019-11-01 | C134: 100 | E134: -1500 | G134: -15800
A135: 2019-11-02 | B135: 2000 | E135: -1500 | G135: -15300
A136: 2019-11-03 | E136: -1500 | G136: -16800
A137: 2019-11-04 | E137: -1500 | G137: -18300
A138: 2019-11-05 | B138: 3000 | C138: 3200 | E138: -1500 | G138: -13600
A139: 2019-11-06 | B139: 1000 | C139: 600 | G139: -12000
A140: 2019-11-07 | B140: 1000 | C140: 900 | E140: -1500 | G140: -11600
A141: 2019-11-08 | C141: 500 | E141: -1500 | G141: =(B141+C141+D141)+(E141+F141)+G140 -> -12600
A142: 2019-11-09 | E142: -1500 | G142: -14100
A143: 2019-11-10 | E143: -1500 | G143: -15600
A144: 2019-11-11 | B144: 2500 | C144: 1100 | E144: -1500 | G144: -13500
A145: 2019-11-12 | E145: -1500 | G145: -15000
A146: 2019-11-13 | C146: 100 | G146: -14900
A147: 2019-11-14 | E147: -1500 | G147: -16400
A148: 2019-11-15 | B148: 1100 | C148: 600 | E148: -1500 | G148: -16200
A149: 2019-11-16 | B149: 2000 | E149: -1500 | G149: -15700
A150: 2019-11-17 | E150: -1500 | G150: -17200
A151: 2019-11-18 | C151: 100 | E151: -1500 | G151: -18600
A152: 2019-11-19 | C152: 200 | E152: -1500 | G152: =(B152+C152+D152)+(E152+F152)+G151 -> -19900
A153: 2019-11-20 | G153: -19900
A154: 2019-11-21 | B154: 2000 | E154: -1500 | G154: -19400
A155: 2019-11-22 | E155: -1500 | G155: -20900
A156: 2019-11-23 | B156: 2100 | E156: -1500 | G156: -20300
A157: 2019-11-24 | E157: -1500 | G157: -21800
A158: 2019-11-25 | C158: 900 | E158: -1500 | G158: -22400
A159: 2019-11-26 | E159: -1500 | G159: =(B159+C159+D159)+(E159+F159)+G158 -> -23900
A160: 2019-11-27 | C160: 700 | G160: -23200
A161: 2019-11-28 | C161: 500 | D161: 100 | E161: -1500 | G161: -24100
A162: 2019-11-29 | C162: 400 | D162: 300 | E162: -1500 | G162: -24900
A163: 2019-11-30 | E163: -1500 | G163: =(B163+C163+D163)+(E163+F163)+G162 -> -26400
A164: 2019-12-01 | E164: -1500 | G164: -27900
A165: 2019-12-02 | C165: 1800 | D165: 1100 | E165: -1500 | G165: -26500
A166: 2019-12-03 | B166: 700 | C166: 1200 | D166: 100 | E166: -1500 | G166: -26000
A167: 2019-12-04 | C167: 600 | D167: 900 | G167: -24500
A168: 2019-12-05 | B168: 1500 | E168: -1500 | G168: -24500
A169: 2019-12-06 | B169: 1200 | C169: 700 | D169: 100 | E169: -1500 | G169: -24000
A170: 2019-12-07 | E170: -1500 | G170: =(B170+C170+D170)+(E170+F170)+G169 -> -25500
A171: 2019-12-08 | E171: -1500 | G171: -27000
A172: 2019-12-09 | B172: 1000 | C172: 2200 | D172: 1000 | E172: -1500 | G172: -24300
A173: 2019-12-10 | C173: 300 | D173: 300 | E173: -1500 | G173: -25200
A174: 2019-12-11 | B174: 1600 | C174: 400 | G174: -23200
A175: 2019-12-12 | D175: 100 | E175: -1500 | F175: -500 | G175: -25100 | H175: штраф
A176: 2019-12-13 | C176: 100 | E176: -1500 | G176: -26500
A177: 2019-12-14 | E177: -1500 | G177: -28000
A178: 2019-12-15 | E178: -1500 | G178: -29500
A179: 2019-12-16 | C179: 900 | G179: -28600 | H179: забрали
A180: 2019-12-17 | B180: 300
A192: 2019-12-16 | E192: -750 | G192: -750 | H192: Принял Умматов
A193: 2019-12-17 | B193: 750 | G193: =(B193+C193+D193)+(E193+F193)+G192 -> 0 | H193: поставил Умматов
A194: 2019-12-18 | E194: -1500 | G194: -1500
A195: 2019-12-19 | C195: 1200 | E195: -1500 | G195: -1800
A196: 2019-12-20 | C196: 1300 | E196: -1500 | F196: 400 | G196: -1600 | H196: электрика, прикуриватель
A197: 2019-12-21 | E197: -1500 | F197: 600 | G197: -2500 | H197: газ диагностика
A198: 2019-12-22 | E198: -1500 | G198: -4000
A199: 2019-12-23 | C199: 4200 | E199: -1500 | G199: -1300
A200: 2019-12-24 | C200: 600 | G200: -700
A201: 2019-12-25 | C201: 1100 | E201: -1500 | G201: -1100
A202: 2019-12-26 | C202: 1900 | E202: -1500 | G202: -700
A203: 2019-12-27 | C203: 400 | E203: -1500 | G203: -1800
A204: 2019-12-28 | E204: -1500 | G204: -3300
A205: 2019-12-29 | E205: -1500 | G205: -4800
A206: 2019-12-30 | B206: 1000 | C206: 800 | G206: -3000 | H206: поставил Тамриз
A207: 2019-12-31
A208: 2020-01-01 | G208: 0
A209: 2020-01-02 | G209: =(B209+C209+D209)+(E209+F209)+G208 -> 0
A210: 2020-01-03 | G210: 0
A211: 2020-01-04 | G211: 0
A212: 2020-01-05 | G212: 0
... 28 more rows

Sheet Лист1

Sheet Нексия
A1: Дата | B1: Приход | E1: Расход | G1: Сальдо
B2: Наличка | C2: Безнал | D2: Прочие | E2: Аренда | F2: Прочие
A3: 2019-10-22 | E3: -500 | G3: =(B3+C3+D3)+(E3+F3) -> -500
A4: 2019-10-23 | C4: 500 | E4: -1000 | G4: =(B4+C4+D4)+(E4+F4)+G3 -> -1000
A5: 2019-10-24 | C5: 1000 | E5: -1000 | G5: =(B5+C5+D5)+(E5+F5)+G4 -> -1000
A6: 2019-10-25 | C6: 1500 | E6: -1000 | G6: -500
A7: 2019-10-26 | E7: -1000 | G7: -1500
A8: 2019-10-27 | E8: -1000 | G8: -2500
A9: 2019-10-28 | C9: 6100 | F9: -3600 | G9: 0 | H9: выдал на руки
A10: 2019-10-29 | C10: 300 | E10: -500 | F10: 1200 | G10: 1000 | H10: шиномонтаж остаток уходит 1000 на киа
A11: 2019-10-30 | H11: поставил Фазылов
A12: 2019-10-31 | B12: 1000 | E12: -1000 | G12: 0 | H12: Принял Серебренников
A13: 2019-11-01 | E13: -1000 | G13: -1000
A14: 2019-11-02 | B14: 1000 | E14: -1000 | G14: -1000
A15: 2019-11-03 | B15: 1000 | E15: -1000 | G15: -1000
A16: 2019-11-04 | E16: -1000 | G16: -2000
A17: 2019-11-05 | B17: 1000 | E17: -1000 | G17: -2000
A18: 2019-11-06 | G18: -2000
A19: 2019-11-07 | E19: -1000 | G19: -3000
A20: 2019-11-08 | B20: 1300 | E20: -1000 | G20: -2700
A21: 2019-11-09 | B21: 1200 | E21: -1000 | G21: -2500
A22: 2019-11-10 | E22: -1000 | G22: -3500
A23: 2019-11-11 | E23: -1000 | G23: -4500
A24: 2019-11-12 | B24: 1000 | E24: -1000 | G24: -4500
A25: 2019-11-13 | B25: 1000 | G25: -3500
A26: 2019-11-14 | B26: 700 | E26: -1000 | G26: -3800
A27: 2019-11-15 | B27: 900 | C27: 600 | E27: -1000 | G27: -3300
A28: 2019-11-16 | B28: 800 | E28: -1000 | G28: -3500
A29: 2019-11-17 | B29: 1300 | E29: -1000 | G29: -3200
A30: 2019-11-18 | E30: -500 | G30: -3700 | H30: сервис
A31: 2019-11-19 | E31: -1000 | G31: -4700
A32: 2019-11-20 | B32: 1500 | G32: -3200
A33: 2019-11-21 | B33: 1000 | E33: -1000 | G33: -3200
A34: 2019-11-22 | E34: -1000 | G34: -4200
A35: 2019-11-23 | B35: 1300 | E35: -1000 | G35: =(B35+C35+D35)+(E35+F35)+G34 -> -3900
A36: 2019-11-24 | B36: 2000 | E36: -1000 | G36: -2900
A37: 2019-11-25 | E37: -1000 | G37: -3900
A38: 2019-11-26 | B38: 1000 | G38: -2900 | H38: сервис
A39: 2019-11-27 | G39: -2900
A40: 2019-11-28 | E40: -1000 | G40: -3900
A41: 2019-11-29 | B41: 1500 | E41: -1000 | G41: -3400
A42: 2019-11-30 | B42: 1000 | E42: -1000 | G42: -3400
A43: 2019-12-01 | E43: -1000 | G43: -4400
A44: 2019-12-02 | B44: 1800 | E44: -1000 | G44: -3600
A45: 2019-12-03 | B45: 2000 | E45: -1000 | G45: =(B45+C45+D45)+(E45+F45)+G44 -> -2600
A46: 2019-12-04 | G46: -2600
A47: 2019-12-05 | B47: 1000 | E47: -1000 | G47: -2600
A48: 2019-12-06 | E48: -1000 | G48: -3600
A49: 2019-12-07 | E49: -1000 | G49: -4600
A50: 2019-12-08 | E50: -1000 | G50: -5600
A51: 2019-12-09 | B51: 2000 | E51: -1000 | G51: -4600
A52: 2019-12-10 | E52: -1000 | G52: -5600
A53: 2019-12-11 | B53: 1500 | G53: -4100
A54: 2019-12-12 | E54: -1000 | G54: =(B54+C54+D54)+(E54+F54)+G53 -> -5100
A55: 2019-12-13 | B55: 600 | E55: -1000 | G55: -5500
A56: 2019-12-14 | E56: -1000 | G56: -6500
A57: 2019-12-15 | E57: -1000 | G57: -7500
A58: 2019-12-16 | B58: 2100 | E58: -1000 | G58: -6400
A59: 2019-12-17 | B59: 2000 | E59: -1000 | G59: -5400
A60: 2019-12-18 | B60: 900 | G60: -4500
A61: 2019-12-19 | E61: -1000 | G61: =(B61+C61+D61)+(E61+F61)+G60 -> -5500
A62: 2019-12-20 | B62: 2000 | E62: -1000 | G62: -4500
A63: 2019-12-21 | E63: -1000 | G63: -5500
A64: 2019-12-22 | E64: -1000 | G64: -6500
A65: 2019-12-23 | B65: 2000 | E65: -1000 | G65: -5500
A66: 2019-12-24 | B66: 1000 | E66: -1000 | G66: -5500
A67: 2019-12-25 | G67: -5500
A68: 2019-12-26 | E68: -1000 | G68: -6500
A69: 2019-12-27 | B69: 1500 | E69: -1000 | G69: =(B69+C69+D69)+(E69+F69)+G68 -> -6000
A70: 2019-12-28 | B70: 1000 | G70: -5000 | H70: забрали
A71: 2019-12-29 | E71: -1000 | G71: -6000
A72: 2019-12-30 | E72: -1000 | G72: -7000
A73: 2019-12-31 | E73: -1000 | G73: -8000
A74: 2020-01-01 | E74: -1000 | G74: -9000
A75: 2020-01-02 | E75: -1000 | G75: -10000
A76: 2020-01-03 | E76: -1000 | G76: -11000
A77: 2020-01-04 | E77: -1000 | G77: -12000

Sheet новЛоган929
A1: Дата | B1: Приход | E1: Расход | G1: Сальдо
B2: Наличка | C2: Безнал | D2: Прочие | E2: Аренда | F2: Прочие
A3: 2019-12-27 | E3: -750 | G3: =(B3+C3+D3)+(E3+F3) -> -750
A4: 2019-12-28 | E4: -1500 | G4: =(B4+C4+D4)+(E4+F4)+G3 -> -2250
A5: 2019-12-29 | E5: -1500 | G5: -3750
A6: 2019-12-30 | C6: 4400 | D6: 200 | E6: -1500 | G6: -650
A7: 2019-12-31 | E7: -1500 | G7: -2150
A8: 2020-01-01 | G8: -2150
A9: 2020-01-02 | G9: -2150
A10: 2020-01-03 | E10: -1500 | G10: -3650
A11: 2020-01-04 | E11: -1500 | G11: -5150
A12: 2020-01-05 | E12: -750 | G12: -5900 | H12: поставил машину Гареев
A13: 2020-01-06 | G13: -5900
A14: 2020-01-07 | G14: -5900
A15: 2020-01-08 | G15: -5900
A16: 2020-01-09 | C16: 5500 | G16: -400
A18: 2020-01-09 | E18: -750 | H18: Приняла Ласкина Ольга
A19: 2020-01-10 | E19: -1500 | G19: =(B19+C19+D19)+(E19+F19)+G16 -> -1900
A20: 2020-01-11 | E20: -1500 | G20: =(B20+C20+D20)+(E20+F20)+G19 -> -3400
A21: 2020-01-12 | E21: -1500 | G21: -4900
A22: 2020-01-13 | C22: 2100 | E22: -1500 | G22: -4300
A23: 2020-01-14 | B23: 3000 | C23: 1000 | E23: -1500 | G23: -1800
A24: 2020-01-15 | C24: 1200 | G24: -600
A25: 2020-01-16 | C25: 1600 | E25: -1500 | G25: -500
A26: 2020-01-17 | E26: -1500 | G26: -2000
A27: 2020-01-18 | E27: -1500 | G27: -3500
A28: 2020-01-19 | E28: -1500 | G28: -5000
A29: 2020-01-20 | C29: 4400 | E29: -1500 | G29: -2100
A30: 2020-01-21 | C30: 1200 | E30: -1500 | G30: -2400
A31: 2020-01-22 | G31: -2400
A32: 2020-01-23 | C32: 400 | E32: -1500 | F32: 500 | G32: -3000 | H32: за водителя Степанова
A33: 2020-01-24 | E33: -1500 | G33: -4500
A34: 2020-01-25 | E34: -1500 | G34: -6000
A35: 2020-01-26 | E35: -1500 | G35: -7500
A36: 2020-01-27 | E36: -1500 | G36: =(B36+C36+D36)+(E36+F36)+G35 -> -9000
A37: 2020-01-28 | E37: -1500 | G37: -10500
A38: 2020-01-29 | E38: -1500 | G38: -12000
A39: 2020-01-30 | E39: -1500 | G39: -13500
A40: 2020-01-31 | E40: -1500 | G40: -15000
A41: 2020-02-01 | E41: -1500 | G41: -16500

Sheet Киа847
A1: Дата | B1: Приход | E1: Расход | G1: Сальдо
B2: Наличка | C2: Безнал | D2: Прочие | E2: Аренда | F2: Прочие
A3: 2019-11-20 | C3: 800 | E3: -1300 | G3: =(B3+C3+D3)+(E3+F3) -> -500
A4: 2019-11-21 | C4: 900 | E4: -1300 | G4: =(B4+C4+D4)+(E4+F4)+G3 -> -900
A5: 2019-11-22 | C5: 500 | E5: -1300 | G5: -1700
A6: 2019-11-23 | E6: -1300 | G6: -3000
A7: 2019-11-24 | E7: -1300 | G7: -4300
A8: 2019-11-25 | B8: 3300 | C8: 2300 | E8: -1300 | G8: 0
A9: 2019-11-26 | C9: 500 | G9: 500
A10: 2019-11-27 | C10: 700 | E10: -1300 | G10: -100
A11: 2019-11-28 | C11: 300 | E11: -1300 | F11: 160 | G11: -940 | H11: Лампочка
A12: 2019-11-29 | C12: 800 | E12: -1300 | G12: -1440
A13: 2019-11-30 | E13: -1300 | G13: -2740
A14: 2019-12-01 | E14: -1300 | G14: -4040
A15: 2019-12-02 | C15: 3400 | E15: -1300 | G15: -1940
A16: 2019-12-03 | C16: 900 | G16: =(B16+C16+D16)+(E16+F16)+G15 -> -1040
A17: 2019-12-04 | C17: 800 | E17: -1300 | G17: -1540
A18: 2019-12-05 | C18: 200 | E18: -750 | G18: -2090 | H18: замена масла и трекера
A19: 2019-12-06 | C19: 800 | E19: -1300 | G19: -2590
A20: 2019-12-07 | E20: -1300 | G20: -3890
A21: 2019-12-08 | E21: -1300 | G21: -5190
A22: 2019-12-09 | C22: 3500 | E22: -1300 | G22: -2990
A23: 2019-12-10 | C23: 500 | G23: -2490
A24: 2019-12-11 | B24: 600 | C24: 100 | E24: -1300 | G24: -3090
A25: 2019-12-12 | C25: 500 | E25: -1300 | G25: =(B25+C25+D25)+(E25+F25)+G24 -> -3890
A26: 2019-12-13 | C26: 500 | E26: -1300 | G26: -4690
A27: 2019-12-14 | E27: -1300 | G27: -5990
A28: 2019-12-15 | E28: -1300 | G28: -7290
A29: 2019-12-16 | C29: 3600 | E29: -1300 | G29: -4990
A30: 2019-12-17 | C30: 300 | G30: -4690
A31: 2019-12-18 | B31: 1110 | C31: 1100 | E31: -650 | G31: =(B31+C31+D31)+(E31+F31)+G30 -> -3130 | H31: два раза за трекером ездили
A32: 2019-12-19 | B32: 1000 | C32: 100 | E32: -1300 | G32: -3330
A33: 2019-12-20 | C33: 1000 | E33: -1300 | G33: -3630
A34: 2019-12-21 | E34: -1300 | G34: -4930
A35: 2019-12-22 | E35: -1300 | G35: -6230
A36: 2019-12-23 | C36: 2500 | E36: -1300 | G36: -5030
A37: 2019-12-24 | C37: 700 | G37: -4330
A38: 2019-12-25 | C38: 1000 | E38: -1300 | G38: -4630
A39: 2019-12-26 | B39: 1500 | C39: 300 | E39: -1300 | G39: -4130
A40: 2019-12-27 | B40: 1300 | E40: -1300 | G40: -4130
A41: 2019-12-28 | E41: -1300 | G41: =(B41+C41+D41)+(E41+F41)+G40 -> -5430
A42: 2019-12-29 | E42: -1300 | G42: -6730
A43: 2019-12-30 | B43: 1130 | C43: 3400 | E43: -1300 | G43: -3500
A44: 2019-12-31 | G44: -3500
A45: 2020-01-01 | G45: -3500
A46: 2020-01-02 | G46: -3500
A47: 2020-01-03 | E47: -1300 | G47: -4800
A48: 2020-01-04 | E48: -1300 | G48: -6100
A49: 2020-01-05 | E49: -1300 | G49: -7400
A50: 2020-01-06 | E50: -1300 | G50: -8700
A51: 2020-01-07 | G51: -8700
A52: 2020-01-08 | E52: -1300 | G52: -10000
A53: 2020-01-09 | C53: 9400 | E53: -1300 | G53: =(B53+C53+D53)+(E53+F53)+G52 -> -1900
A54: 2020-01-10 | E54: -1300 | G54: -3200
A55: 2020-01-11 | E55: -1300 | G55: -4500
A56: 2020-01-12 | E56: -1300 | G56: -5800
A57: 2020-01-13 | C57: 2200 | E57: -1300 | G57: -4900
A58: 2020-01-14 | C58: 400 | G58: -4500
A59: 2020-01-15 | C59: 800 | E59: -1300 | G59: -5000
A60: 2020-01-16 | B60: 2000 | C60: 600 | E60: -1300 | G60: -3700
A61: 2020-01-17 | C61: 800 | E61: -1300 | G61: -4200
A62: 2020-01-18 | E62: -1300 | G62: -5500
A63: 2020-01-19 | E63: -1300 | G63: =(B63+C63+D63)+(E63+F63)+G62 -> -6800
A64: 2020-01-20 | C64: 2000 | E64: -1300 | G64: -6100
A65: 2020-01-21 | C65: 1700 | G65: -4400
A66: 2020-01-22 | C66: 800 | E66: -1300 | G66: -4900
A67: 2020-01-23 | B67: 500 | C67: 300 | E67: -1300 | G67: -5400
A68: 2020-01-24 | E68: -1300 | G68: -6700
A69: 2020-01-25 | E69: -1300 | G69: -8000
A70: 2020-01-26 | E70: -1300 | G70: -9300
A71: 2020-01-27 | E71: -1300 | G71: =(B71+C71+D71)+(E71+F71)+G70 -> -10600
A72: 2020-01-28 | G72: -10600
A73: 2020-01-29 | E73: -1300 | G73: -11900
A74: 2020-01-30 | E74: -1300 | G74: -13200
A75: 2020-01-31 | E75: -1300 | G75: -14500

Sheet киа440
A1: Дата | B1: Приход | E1: Расход | G1: Сальдо
B2: Наличка | C2: Безнал | D2: Прочие | E2: Аренда | F2: Прочие
A3: 2020-01-13 | G3: =(B3+C3+D3)+(E3+F3) -> 0 | H3: принял Макшанцев
A4: 2020-01-14 | C4: 300 | E4: -1400 | G4: =(B4+C4+D4)+(E4+F4)+G3 -> -1100
A5: 2020-01-15 | C5: 1400 | E5: -1400 | G5: -1100
A6: 2020-01-16 | C6: 1400 | E6: -1400 | G6: -1100
A7: 2020-01-17 | C7: 1400 | E7: -1400 | G7: -1100
A8: 2020-01-18 | E8: -1400 | G8: -2500
A9: 2020-01-19 | E9: -1400 | G9: -3900
A10: 2020-01-20 | C10: 4300 | G10: 400
A11: 2020-01-21 | C11: 1300 | E11: -1400 | G11: 300
A12: 2020-01-22 | E12: -1400 | G12: -1100
A13: 2020-01-23 | C13: 500 | E13: -1400 | G13: -2000
A14: 2020-01-24 | E14: -1400 | G14: -3400
A15: 2020-01-25 | E15: -1400 | G15: -4800
A16: 2020-01-26 | E16: -1400 | G16: -6200
A17: 2020-01-27 | G17: -6200
A18: 2020-01-28 | E18: -1400 | G18: -7600
A19: 2020-01-29 | E19: -1400 | G19: -9000
A20: 2020-01-30 | E20: -1400 | G20: -10400
A21: 2020-01-31 | E21: -1400 | G21: -11800
A22: 2020-02-01 | E22: -1400 | G22: -13200
